fUSD/lending_fUSD_20240910
["ID","MTS","AMOUNT","RATE_DAILY","PERIOD"]
[337662357,1725926415080,1168.0,0.000102,5]
[337662359,1725926455836,168.32,0.00011729,2]
[337662360,1725926526287,270.0,0.00011725,2]
[337662376,1725926645611,250.0,0.00011729,2]
[337662377,1725926668409,840.0,0.00011728,2]
[337662379,1725926707445,729.0,0.000108,2]
[337662391,1725926805442,518.53,9.813e-05,2]
[337662394,1725926995785,-368.5485562,0.00012013,2]
[337662395,1725926995814,-314.74364422,0.00012077,2]
[337662399,1725927031561,-203.78635578,0.00012077,2]
[337662400,1725927031571,-121.74064422,0.00012623,2]
[337662410,1725927037425,-28.25935578,0.00012623,2]
[337662411,1725927037434,-150.0,0.00012632,2]
[337662412,1725927037443,-150.0,0.00012635,2]
[337662413,1725927037452,-150.0,0.00012652,2]
[337662414,1725927037461,-150.0,0.00012655,2]
[337662415,1725927037470,-150.0,0.00012657,2]
[337662416,1725927037479,-150.0,0.00012676,2]
[337662417,1725927037488,-150.0,0.00012676,2]
[337662418,1725927037497,-90.44830696,0.00012681,2]
[337662419,1725927037637,-384.69733532,0.00012652,2]
[337662422,1725927037648,-351.37800001,0.00012652,2]
[337662476,1725927039374,-1149.96,0.00012652,2]
[337662477,1725927039427,-681.26488617,0.00012652,2]
[337662478,1725927039482,-2125.3012235,0.00012652,2]
[337662479,1725927039492,-59.55169304,0.00012681,2]
[337662480,1725927039502,-150.0,0.00012682,2]
[337662481,1725927039512,-150.0,0.00012685,2]
[337662482,1725927039522,-150.0,0.00012687,2]
[337662483,1725927039531,-175.98233999,0.00012687,2]
[337662484,1725927039540,-318.35583163,0.00012687,2]
[337662485,1725927039550,-312.9799569,0.00012688,2]
[337662486,1725927039559,-220.17871184,0.00012688,2]
[337662487,1725927039569,-162.63507056,0.00012689,2]
[337662488,1725927039578,-3643.1069,0.00012689,2]
[337662489,1725927039588,-1487.8249,0.0001269,2]
[337662490,1725927039598,-3345.9573,0.0001269,2]
[337662491,1725927039607,-7043.8624,0.0001269,2]
[337662492,1725927039617,-150.0,0.00012693,2]
[337662493,1725927039626,-150.0,0.00012706,2]
[337662494,1725927039636,-150.0,0.00012706,2]
[337662495,1725927039645,-150.0,0.0001271,2]
[337662496,1725927039655,-150.0,0.00012711,2]
[337662497,1725927039664,-150.0,0.00012716,2]
[337662498,1725927039673,-150.0,0.00012726,2]
[337662499,1725927039682,-150.0,0.00012728,2]
[337662500,1725927039692,-150.0,0.0001274,2]
[337662503,1725927039840,-150.0,0.00012743,2]
[337662504,1725927039850,-150.0,0.0001275,2]
[337662505,1725927039860,-757.84304,0.0001276,2]
[337662506,1725927039870,-150.0,0.00012766,2]
[337662507,1725927039880,-327.6182808,0.00012773,2]
[337662508,1725927039890,-160.88,0.00012777,2]
[337662509,1725927039900,-4000.0,0.00012777,2]
[337662510,1725927039910,-757.84305,0.0001278,2]
[337662511,1725927039920,-421.39411001,0.0001278,2]
[337662512,1725927039929,-150.0,0.00012785,2]
[337662513,1725927039939,-500.0,0.00012786,2]
[337662514,1725927039949,-154.90507065,0.00012786,2]
[337662515,1725927039958,-417.34505071,0.00012786,2]
[337662516,1725927039968,-500.0,0.00012786,2]
[337662517,1725927039978,-1621.77,0.00012786,2]
[337662518,1725927039987,-3176.86,0.00012786,2]
[337662519,1725927039997,-500.0,0.00012786,2]
[337662520,1725927040007,-500.0,0.00012786,2]
[337662521,1725927040017,-586.34,0.00012787,2]
[337662522,1725927040026,-500.0,0.00012787,2]
[337662523,1725927040035,-500.0,0.00012787,2]
[337662524,1725927040045,-500.0,0.00012787,2]
[337662525,1725927040055,-515.26648465,0.00012787,2]
[337662526,1725927040065,-500.0,0.00012787,2]
[337662527,1725927040075,-1102.21,0.00012787,2]
[337662528,1725927040085,-742.07,0.00012787,2]
[337662529,1725927040095,-500.0,0.00012787,2]
[337662530,1725927040105,-500.0,0.00012787,2]
[337662531,1725927040115,-500.0,0.00012787,2]
[337662532,1725927040125,-500.0,0.00012787,2]
[337662533,1725927040135,-500.0,0.00012787,2]
[337662534,1725927040145,-500.0,0.00012787,2]
[337662535,1725927040157,-500.0,0.00012787,2]
[337662536,1725927040166,-500.0,0.00012787,2]
[337662537,1725927040176,-222.92121082,0.00012787,2]
[337662538,1725927040185,-500.0,0.00012787,2]
[337662539,1725927040194,-503.23611496,0.00012787,2]
[337662540,1725927040204,-500.0,0.00012787,2]
[337662541,1725927040214,-500.0,0.00012787,2]
[337662542,1725927040223,-500.0,0.00012787,2]
[337662543,1725927040233,-1207.89,0.00012787,2]
[337662544,1725927040243,-500.0,0.00012787,2]
[337662545,1725927040252,-106387.46,0.00012787,2]
[337662546,1725927040262,-7414.87,0.00012787,2]
[337662547,1725927040271,-2027.07,0.00012787,2]
[337662548,1725927040280,-15312.79,0.00012787,2]
[337662549,1725927040289,-500.0,0.00012787,2]
[337662550,1725927040299,-500.0,0.00012787,2]
[337662551,1725927040308,-500.0,0.00012787,2]
[337662552,1725927040317,-500.0,0.00012787,2]
[337662553,1725927040326,-4178.32,0.00012787,2]
[337662554,1725927040335,-3611.9,0.00012787,2]
[337662555,1725927040345,-1992.75,0.00012787,2]
[337662556,1725927040354,-1531.93,0.00012787,2]
[337662557,1725927040363,-9447.02,0.00012787,2]
[337662558,1725927040372,-6225.16,0.00012787,2]
[337662559,1725927040381,-5103.97,0.00012787,2]
[337662560,1725927040390,-9241.92,0.00012787,2]
[337662561,1725927040400,-10113.98,0.00012787,2]
[337662562,1725927040409,-6722.64,0.00012787,2]
[337662563,1725927040419,-500.0,0.00012787,2]
[337662564,1725927040428,-306.30045994,0.00012787,2]
[337662565,1725927040437,-7391.56,0.00012787,2]
[337662566,1725927040446,-437.203,0.00012787,2]
[337662567,1725927040456,-2850.58,0.00012787,2]
[337662568,1725927040466,-7546.39,0.00012787,2]
[337662569,1725927040475,-4987.64,0.00012787,2]
[337662570,1725927040484,-1785.82,0.00012787,2]
[337662571,1725927040493,-500.0,0.00012787,2]
[337662572,1725927040503,-17047.25,0.00012787,2]
[337662573,1725927040513,-4726.39,0.00012787,2]
[337662574,1725927040523,-3354.68,0.00012787,2]
[337662575,1725927040532,-500.0,0.00012787,2]
[337662576,1725927040541,-8266.33,0.00012787,2]
[337662577,1725927040551,-10624.35,0.00012787,2]
[337662578,1725927040560,-5896.6,0.00012787,2]
[337662579,1725927040569,-7036.47,0.00012787,2]
[337662580,1725927040578,-7058.26,0.00012787,2]
[337662581,1725927040587,-516.32,0.00012787,2]
[337662582,1725927040596,-8327.88130313,0.00012787,2]
[337662583,1725927040609,-26850.46869687,0.00012787,2]
[337662584,1725927040618,-7390.59,0.00012787,2]
[337662585,1725927040627,-7240.42,0.00012787,2]
[337662586,1725927040637,-14197.98096323,0.00012787,2]
[337662587,1725927040656,-5583.41176164,0.00012787,2]
[337662588,1725927040671,-839.74788676,0.00012787,2]
[337662592,1725927042430,-5248.95938837,0.00012787,2]
[337662593,1725927042440,-59742.12,0.00012787,2]
[337662594,1725927042450,-14577.97,0.00012787,2]
[337662595,1725927042459,-3727.86,0.00012787,2]
[337662596,1725927042468,-10077.12,0.00012787,2]
[337662597,1725927042477,-3193.87,0.00012787,2]
[337662598,1725927042486,-2787.15,0.00012787,2]
[337662599,1725927042495,-8537.96,0.00012787,2]
[337662600,1725927042505,-5763.05,0.00012787,2]
[337662601,1725927042517,-9876.27,0.00012787,2]
[337662602,1725927042526,-14762.34370173,0.00012787,2]
[337662603,1725927042538,-4766.11629827,0.00012787,2]
[337662604,1725927042547,-3927.02,0.00012787,2]
[337662605,1725927042556,-1397.72,0.00012787,2]
[337662606,1725927042566,-18795.04,0.00012787,2]
[337662607,1725927042574,-2107.26,0.00012787,2]
[337662608,1725927042584,-17093.21,0.00012787,2]
[337662609,1725927042593,-2677.37,0.00012787,2]
[337662610,1725927042603,-2607.36,0.00012787,2]
[337662611,1725927042612,-13372.65,0.00012787,2]
[337662612,1725927042621,-3302.21,0.00012787,2]
[337662613,1725927042630,-12040.72,0.00012787,2]
[337662614,1725927042640,-500.0,0.00012787,2]
[337662615,1725927042649,-500.0,0.00012788,2]
[337662616,1725927042658,-500.0,0.00012788,2]
[337662617,1725927042668,-500.0,0.00012788,2]
[337662618,1725927042677,-500.0,0.00012788,2]
[337662620,1725927042686,-500.0,0.00012788,2]
[337662621,1725927042695,-1090.47,0.00012788,2]
[337662622,1725927042704,-254.69546017,0.00012788,2]
[337662623,1725927042713,-4804.2,0.00012788,2]
[337662624,1725927042723,-3198.61,0.00012788,2]
[337662625,1725927042732,-404.22974124,0.00012788,2]
[337662626,1725927042741,-500.0,0.00012788,2]
[337662627,1725927042750,-854.3,0.00012788,2]
[337662628,1725927042760,-227.21116118,0.00012788,2]
[337662629,1725927042769,-500.0,0.00012788,2]
[337662630,1725927042778,-500.0,0.00012788,2]
[337662631,1725927042788,-1717.25,0.00012788,2]
[337662632,1725927042798,-500.0,0.00012788,2]
[337662633,1725927042807,-2963.12,0.00012788,2]
[337662634,1725927042817,-500.0,0.00012788,2]
[337662635,1725927042826,-869.79,0.00012788,2]
[337662636,1725927042835,-5061.45,0.00012788,2]
[337662637,1725927042844,-500.0,0.00012788,2]
[337662638,1725927042854,-2696.79824018,0.00012788,2]
[337662639,1725927042866,-351.73608532,0.00012788,2]
[337662640,1725927042877,-493.70742485,0.00012788,2]
[337662641,1725927042888,-104.63824965,0.00012788,2]
[337662642,1725927042897,-500.0,0.00012788,2]
[337662643,1725927042907,-1374.54363109,0.00012788,2]
[337662648,1725927043983,-302.0,0.00012788,2]
[337662649,1725927043995,-584.34636891,0.00012788,2]
[337662650,1725927044004,-500.0,0.00012788,2]
[337662651,1725927044014,-500.0,0.00012788,2]
[337662652,1725927044024,-500.0,0.00012788,2]
[337662653,1725927044033,-3721.47,0.00012788,2]
[337662654,1725927044043,-605.25,0.00012788,2]
[337662655,1725927044052,-609.94835713,0.00012788,2]
[337662667,1725927045471,-35.11164287,0.00012788,2]
[337662668,1725927045480,-396.77335713,0.00012788,2]
[337662669,1725927045529,-103.22664287,0.00012788,2]
[337662670,1725927045539,-1482.91,0.00012788,2]
[337662671,1725927045548,-500.0,0.00012788,2]
[337662672,1725927045557,-500.0,0.00012788,2]
[337662673,1725927045566,-2422.03925706,0.00012788,2]
[337662674,1725927045577,-250.10479714,0.00012788,2]
[337662675,1725927045590,-795.4759458,0.00012788,2]
[337662676,1725927045599,-500.0,0.00012788,2]
[337662677,1725927045608,-500.0,0.00012788,2]
[337662678,1725927045617,-500.0,0.00012788,2]
[337662679,1725927045627,-6221.37,0.00012788,2]
[337662680,1725927045636,-2643.62,0.00012788,2]
[337662681,1725927045646,-500.0,0.00012788,2]
[337662682,1725927045655,-500.0,0.00012788,2]
[337662683,1725927045664,-548.69,0.00012788,2]
[337662684,1725927045673,-500.0,0.00012788,2]
[337662685,1725927045682,-3823.31,0.00012788,2]
[337662686,1725927045691,-500.0,0.00012788,2]
[337662687,1725927045701,-500.0,0.00012788,2]
[337662688,1725927045710,-215.29200489,0.00012788,2]
[337662689,1725927045720,-1973.94,0.00012788,2]
[337662690,1725927045729,-500.0,0.00012788,2]
[337662691,1725927045739,-500.0,0.00012788,2]
[337662692,1725927045748,-500.0,0.00012788,2]
[337662693,1725927045757,-500.0,0.00012788,2]
[337662694,1725927045766,-3202.79,0.00012788,2]
[337662695,1725927045776,-500.0,0.00012788,2]
[337662696,1725927045785,-500.0,0.00012788,2]
[337662697,1725927045795,-5649.62,0.00012788,2]
[337662698,1725927045804,-4480.62,0.00012788,2]
[337662699,1725927045813,-500.0,0.00012788,2]
[337662700,1725927045823,-500.0,0.00012788,2]
[337662701,1725927045832,-500.0,0.00012788,2]
[337662702,1725927045842,-500.0,0.00012788,2]
[337662703,1725927045852,-5625.24,0.00012788,2]
[337662704,1725927045862,-2778.19,0.00012788,2]
[337662705,1725927045871,-671.37,0.00012788,2]
[337662706,1725927045881,-317.82268633,0.00012788,2]
[337662707,1725927045890,-500.0,0.00012788,2]
[337662708,1725927045899,-3036.16,0.00012788,2]
[337662709,1725927045908,-500.0,0.00012788,2]
[337662710,1725927045917,-558.76609188,0.00012788,2]
[337662711,1725927045926,-500.0,0.00012788,2]
[337662712,1725927045936,-501.6216404,0.00012788,2]
[337662713,1725927045945,-2624.02,0.00012788,2]
[337662714,1725927045954,-6429.15,0.00012788,2]
[337662715,1725927045963,-500.0,0.00012788,2]
[337662716,1725927045972,-500.0,0.00012788,2]
[337662717,1725927045981,-500.0,0.00012788,2]
[337662718,1725927045990,-500.0,0.00012788,2]
[337662719,1725927045999,-313.38486919,0.00012788,2]
[337662720,1725927046010,-500.0,0.00012788,2]
[337662721,1725927046019,-714.86,0.00012788,2]
[337662723,1725927046029,-500.0,0.00012788,2]
[337662725,1725927046038,-4607.52,0.00012788,2]
[337662727,1725927046047,-500.0,0.00012788,2]
[337662729,1725927046057,-500.0,0.00012788,2]
[337662730,1725927046066,-500.0,0.00012788,2]
[337662731,1725927046075,-2168.12,0.00012788,2]
[337662732,1725927046084,-964.71,0.00012788,2]
[337662733,1725927046094,-500.0,0.00012788,2]
[337662734,1725927046103,-585.59204285,0.00012788,2]
[337662735,1725927046112,-981.075868,0.00012788,2]
[337662736,1725927046122,-981.075868,0.00012788,2]
[337662737,1725927046131,-500.0,0.00012788,2]
[337662738,1725927046141,-981.075868,0.00012788,2]
[337662739,1725927046151,-500.0,0.00012788,2]
[337662740,1725927046162,-500.0,0.00012788,2]
[337662741,1725927046171,-981.075868,0.00012788,2]
[337662742,1725927046180,-981.075868,0.00012788,2]
[337662743,1725927046190,-500.0,0.00012788,2]
[337662744,1725927046200,-981.075868,0.00012788,2]
[337662745,1725927046209,-894.61,0.00012788,2]
[337662746,1725927046218,-500.0,0.00012788,2]
[337662747,1725927046228,-641.83,0.00012788,2]
[337662748,1725927046237,-500.0,0.00012788,2]
[337662749,1725927046246,-11831.12,0.00012788,2]
[337662750,1725927046255,-500.0,0.00012788,2]
[337662751,1725927046266,-500.0,0.00012788,2]
[337662752,1725927046275,-500.0,0.00012788,2]
[337662753,1725927046285,-500.0,0.00012788,2]
[337662754,1725927046294,-1144.84,0.00012788,2]
[337662755,1725927046303,-500.0,0.00012788,2]
[337662756,1725927046312,-502.4420728,0.00012788,2]
[337662757,1725927046321,-2879.28,0.00012788,2]
[337662758,1725927046330,-500.0,0.00012788,2]
[337662759,1725927046339,-14888.53,0.00012788,2]
[337662760,1725927046348,-570.0361577,0.00012788,2]
[337662761,1725927046358,-500.0,0.00012788,2]
[337662762,1725927046367,-16291.64,0.00012788,2]
[337662763,1725927046376,-500.0,0.00012788,2]
[337662764,1725927046385,-7859.72,0.00012788,2]
[337662765,1725927046394,-500.0,0.00012788,2]
[337662766,1725927046403,-2944.02,0.00012788,2]
[337662767,1725927046412,-2944.02,0.00012788,2]
[337662768,1725927046421,-501.57113362,0.00012788,2]
[337662769,1725927046430,-502.14215446,0.00012788,2]
[337662770,1725927046439,-5126.75,0.00012788,2]
[337662771,1725927046448,-500.0,0.00012788,2]
[337662772,1725927046457,-500.0,0.00012788,2]
[337662773,1725927046466,-502.75106184,0.00012788,2]
[337662774,1725927046475,-570.88,0.00012788,2]
[337662775,1725927046485,-2270.47,0.00012788,2]
[337662776,1725927046494,-15158.32,0.00012788,2]
[337662777,1725927046503,-500.0,0.00012788,2]
[337662778,1725927046514,-500.0,0.00012788,2]
[337662779,1725927046523,-500.0,0.00012788,2]
[337662780,1725927046532,-5260.05,0.00012788,2]
[337662781,1725927046541,-616.90654009,0.00012788,2]
[337662782,1725927046550,-543.72,0.00012788,2]
[337662783,1725927046559,-500.11562557,0.00012788,2]
[337662784,1725927046568,-500.0,0.00012788,2]
[337662785,1725927046577,-504.52538771,0.00012788,2]
[337662786,1725927046586,-500.0,0.00012788,2]
[337662787,1725927046595,-500.0,0.00012788,2]
[337662788,1725927046604,-10602.43,0.00012788,2]
[337662789,1725927046613,-1000.0,0.00012788,2]
[337662790,1725927046622,-500.0,0.00012788,2]
[337662791,1725927046631,-1000.0,0.00012788,2]
[337662792,1725927046640,-1000.0,0.00012788,2]
[337662793,1725927046649,-500.85046885,0.00012788,2]
[337662794,1725927046658,-760.8,0.00012788,2]
[337662795,1725927046668,-1000.0,0.00012788,2]
[337662796,1725927046677,-572.31299713,0.00012788,2]
[337662797,1725927046690,-427.68700287,0.00012788,2]
[337662798,1725927046698,-500.0,0.00012788,2]
[337662799,1725927046708,-503.39295213,0.00012788,2]
[337662800,1725927046719,-496.60704787,0.00012788,2]
[337662801,1725927046729,-72.20049434,0.00012788,2]
[337662802,1725927046740,-429.24341099,0.00012788,2]
[337662803,1725927046750,-4709.1,0.00012788,2]
[337662804,1725927046759,-502.56571764,0.00012788,2]
[337662805,1725927046768,-4765.64,0.00012788,2]
[337662806,1725927046777,-500.0,0.00012788,2]
[337662807,1725927046786,-1063.54139845,0.00012788,2]
[337662808,1725927046805,-815.6971792,0.00012788,2]
[337662809,1725927046817,-611.7165479,0.00012788,2]
[337662810,1725927046827,-3450.82487445,0.00012788,2]
[337662811,1725927046836,-500.0,0.00012788,2]
[337662812,1725927046846,-500.0,0.00012788,2]
[337662813,1725927046855,-440.28511305,0.00012788,2]
[337662814,1725927046864,-13265.38,0.00012788,2]
[337662815,1725927046873,-1575.65,0.00012788,2]
[337662816,1725927046883,-500.0,0.00012788,2]
[337662817,1725927046891,-500.0,0.00012788,2]
[337662818,1725927046901,-500.0,0.00012788,2]
[337662819,1725927046910,-651.72,0.00012788,2]
[337662820,1725927046920,-2156.56,0.00012788,2]
[337662821,1725927046929,-500.0,0.00012788,2]
[337662822,1725927046938,-3980.87881251,0.00012788,2]
[337662823,1725927046950,-2138.00000118,0.00012788,2]
[337662824,1725927046961,-1135.31998,0.00012788,2]
[337662825,1725927046972,-2115.18120631,0.00012788,2]
[337662826,1725927046981,-500.0,0.00012788,2]
[337662827,1725927046991,-1985.61,0.00012788,2]
[337662828,1725927047000,-500.0,0.00012788,2]
[337662829,1725927047010,-500.0,0.00012788,2]
[337662830,1725927047019,-500.0,0.00012788,2]
[337662831,1725927047029,-782.30334,0.00012788,2]
[337662832,1725927047038,-5388.73,0.00012788,2]
[337662833,1725927047048,-782.30334,0.00012788,2]
[337662834,1725927047057,-782.30334,0.00012788,2]
[337662835,1725927047066,-1930.55,0.00012788,2]
[337662836,1725927047076,-782.30334,0.00012788,2]
[337662837,1725927047085,-782.30334,0.00012788,2]
[337662838,1725927047095,-782.30334,0.00012788,2]
[337662839,1725927047104,-500.0,0.00012788,2]
[337662840,1725927047113,-1180.54,0.00012788,2]
[337662841,1725927047123,-5098.16,0.00012788,2]
[337662842,1725927047132,-273.108183,0.00012788,2]
[337662843,1725927047141,-273.108183,0.00012788,2]
[337662844,1725927047150,-273.108183,0.00012788,2]
[337662845,1725927047161,-273.108183,0.00012788,2]
[337662846,1725927047170,-503.60570515,0.00012788,2]
[337662847,1725927047179,-273.108183,0.00012788,2]
[337662848,1725927047188,-273.108183,0.00012788,2]
[337662849,1725927047197,-273.108183,0.00012788,2]
[337662850,1725927047207,-273.108183,0.00012788,2]
[337662851,1725927047216,-239.9507394,0.00012788,2]
[337662852,1725927047227,-4018.6692606,0.00012788,2]
[337662853,1725927047236,-2055.8298044,0.00012788,2]
[337662854,1725927056176,6637.72,0.00011907,2]
[337662855,1725927057528,184.01,0.00011904,2]
[337662856,1725927104660,250.36,0.00011841,2]
[337662857,1725927104690,329.65,0.00010959,2]
[337662858,1725927140704,2944.6498,0.00011977,2]
[337662859,1725927194545,250.0,0.00011807,2]
[337662860,1725927254659,250.0,0.0001181,2]
[337662861,1725927324441,620.29,9.876e-05,2]
[337662862,1725927328115,23073.33,0.00011794,2]
[337662864,1725927359563,1000.0,0.00011769,2]
[337662865,1725927453637,169.25,0.00011756,2]
[337662866,1725927519436,197.49,0.00012,2]
[337662867,1725927525663,250.0,0.00011758,2]
[337662868,1725927618771,252.79,0.00011757,2]
[337662869,1725927630575,152.87,0.00010959,2]
[337662879,1725927823214,250.0,0.0001174,2]
[337662883,1725927933548,750.0,0.00011,2]
[337662884,1725927952080,26780.40516385,0.00010988,2]
[337662885,1725927955518,21337.35591474,6.94e-05,2]
[337662886,1725927955541,555.83662987,6.94e-05,2]
[337662888,1725927958795,200.0,0.00011755,2]
[337662891,1725927978077,150.0,9.846e-05,2]
[337662892,1725927978102,150.0,9.846e-05,2]
[337662893,1725927978127,150.0,9.846e-05,2]
[337662894,1725927978151,139.27,9.846e-05,2]
[337662901,1725928080407,150.0,0.0001,2]
[337662902,1725928080428,150.0,0.0001,2]
[337662903,1725928080451,150.0,0.0001,2]
[337662904,1725928080471,150.0,0.0001,2]
[337662905,1725928080493,150.0,0.0001,2]
[337662906,1725928080512,150.0,0.0001,2]
[337662907,1725928080534,150.0,0.0001,2]
[337662908,1725928080555,215.1,0.0001,2]
[337662909,1725928080576,833.94057283,0.0001,2]
[337662910,1725928083704,7994.10628472,0.00010999,2]
[337662935,1725928176683,150.0,0.00010959,2]
[337662936,1725928176705,5.08,0.00010959,2]
[337662956,1725928231624,-353.958459,0.00012049,2]
[337662957,1725928231634,-589.27,0.0001211,2]
[337662958,1725928231644,-810.38472106,0.00012586,2]
[337662959,1725928231655,-55.95737026,0.00012586,2]
[337662960,1725928231683,-94.04262974,0.00012586,2]
[337662961,1725928231692,-183.89752903,0.00012587,2]
[337662962,1725928231703,-22.04984123,0.00012587,2]
[337662965,1725928231983,-547.89835877,0.00012587,2]
[337662966,1725928231992,-8769.1601,0.00012587,2]
[337662967,1725928232002,-14329.1008,0.00012587,2]
[337662968,1725928232010,-363.89765177,0.00012588,2]
[337662969,1725928232019,-150.0,0.00012593,2]
[337662970,1725928232028,-150.0,0.00012615,2]
[337662971,1725928232037,-183.89752902,0.00012637,2]
[337662972,1725928232046,-757.84304,0.0001266,2]
[337662973,1725928232055,-1533.7013,0.0001266,2]
[337662974,1725928232064,-1533.7013,0.0001266,2]
[337662975,1725928232073,-1533.7013,0.0001266,2]
[337662976,1725928232082,-1076.49375956,0.0001267,2]
[337662977,1725928232091,-299.99,0.0001267,2]
[337662978,1725928232101,-160.66,0.00012676,2]
[337662979,1725928232110,-150.0,0.0001268,2]
[337662980,1725928232120,-654.23,0.0001268,2]
[337662981,1725928232129,-7500.0,0.00012685,2]
[337662982,1725928232139,-1554.2,0.00012685,2]
[337662983,1725928232148,-500.0,0.00012685,2]
[337662984,1725928232160,-3044.5,0.00012685,2]
[337662985,1725928232170,-868.17,0.00012686,2]
[337662986,1725928232179,-104800.07,0.00012686,2]
[337662987,1725928232188,-2565.81,0.00012686,2]
[337662988,1725928232197,-7105.92,0.00012686,2]
[337662989,1725928232206,-14674.75,0.00012686,2]
[337662990,1725928232215,-500.0,0.00012686,2]
[337662991,1725928232224,-4004.22,0.00012686,2]
[337662992,1725928232233,-3461.4,0.00012686,2]
[337662993,1725928232242,-1909.72,0.00012686,2]
[337662994,1725928232251,-6442.53,0.00012686,2]
[337662995,1725928232260,-9053.39,0.00012686,2]
[337662996,1725928232269,-978.73,0.00012686,2]
[337662997,1725928232278,-4891.3,0.00012686,2]
[337662998,1725928232288,-7083.58,0.00012686,2]
[337662999,1725928232297,-5965.78,0.00012686,2]
[337663000,1725928232307,-9692.57,0.00012686,2]
[337663001,1725928232316,-1711.41,0.00012686,2]
[337663002,1725928232324,-8856.84,0.00012686,2]
[337663003,1725928232334,-3214.9,0.00012686,2]
[337663004,1725928232344,-7921.9,0.00012686,2]
[337663005,1725928232353,-2731.81,0.00012686,2]
[337663006,1725928232363,-500.0,0.00012686,2]
[337663007,1725928232372,-6743.29,0.00012686,2]
[337663008,1725928232381,-500.0,0.00012686,2]
[337663009,1725928232391,-4529.46,0.00012686,2]
[337663010,1725928232400,-4779.82,0.00012686,2]
[337663011,1725928232411,-24792.18,0.00012686,2]
[337663012,1725928232420,-16336.95,0.00012686,2]
[337663013,1725928232429,-6764.16,0.00012686,2]
[337663014,1725928232438,-10181.67,0.00012686,2]
[337663015,1725928232447,-6938.73,0.00012686,2]
[337663016,1725928232456,-10077.12,0.00012686,2]
[337663017,1725928232466,-1451.77881544,0.00012686,2]
[337663019,1725928237677,-318.35583161,0.00012586,2]
[337663020,1725928237686,-180.48029254,0.00012686,2]
[337663021,1725928237697,-2079.57011216,0.00012686,2]
[337663022,1725928237711,-3370.82077986,0.00012686,2]
[337663023,1725928237721,-9142.92,0.00012686,2]
[337663024,1725928237729,-7826.46,0.00012686,2]
[337663025,1725928237738,-5650.91,0.00012686,2]
[337663026,1725928237747,-3727.86,0.00012686,2]
[337663027,1725928237756,-14577.97,0.00012686,2]
[337663028,1725928237765,-33712.59,0.00012686,2]
[337663029,1725928237774,-2787.15,0.00012686,2]
[337663030,1725928237783,-3763.4,0.00012686,2]
[337663031,1725928237792,-3193.87,0.00012686,2]
[337663032,1725928237801,-2019.45,0.00012686,2]
[337663033,1725928237810,-18951.20795989,0.00012686,2]
[337663034,1725928237834,-494.25849079,0.00012686,2]
[337663035,1725928237845,-306.53181999,0.00012686,2]
[337663036,1725928237856,-56908.12440001,0.00012686,2]
[337663039,1725928237871,-10928.45358442,0.00012686,2]
[337663110,1725928239619,-2024.6037449,0.00012686,2]
[337663111,1725928239628,-2015.50013208,0.00012686,2]
[337663112,1725928239640,-1666.81507885,0.00012686,2]
[337663113,1725928239679,-6193.95478907,0.00012686,2]
[337663114,1725928239688,-3330.15038658,0.00012686,2]
[337663115,1725928241543,-500.0,0.00012685,2]
[337663116,1725928241553,-68.298448,0.00012685,2]
[337663117,1725928241658,-431.701552,0.00012685,2]
[337663118,1725928241668,-12821.52268178,0.00012686,2]